fUST/lending_fUST_20240223
["ID","MTS","AMOUNT","RATE_DAILY","PERIOD"]
[314921862,1708654246512,-523.35310181,0.00019178,2]
[314921863,1708654246522,-501.8563064,0.00019178,2]
[314921864,1708654246531,-312.35442427,0.00019178,2]
[314921865,1708654246539,-500.0,0.00019178,2]
[314921866,1708654246548,-5529.35,0.00019178,2]
[314921867,1708654246558,-1116.09,0.00019178,2]
[314921868,1708654246567,-869.47,0.00019178,2]
[314921869,1708654246576,-1071.82,0.00019178,2]
[314921870,1708654246585,-829.29,0.00019178,2]
[314921871,1708654246594,-1195.69,0.00019178,2]
[314921872,1708654246602,-500.0,0.00019178,2]
[314921873,1708654246611,-1175.77,0.00019178,2]
[314921874,1708654246620,-1385.69,0.00019178,2]
[314921875,1708654246629,-500.0,0.00019178,2]
[314921876,1708654246638,-912.11,0.00019178,2]
[314921877,1708654246646,-965.27,0.00019178,2]
[314921878,1708654246654,-190.40362464,0.00019178,2]
[314921879,1708654246663,-5555.74,0.00019178,2]
[314921880,1708654246672,-500.0,0.00019178,2]
[314921881,1708654246680,-1540.57,0.00019178,2]
[314921882,1708654246688,-500.0,0.00019178,2]
[314921883,1708654246697,-280.90668508,0.00019178,2]
[314921884,1708654246706,-503.89306377,0.00019178,2]
[314921885,1708654246714,-541.33536172,0.00019178,2]
[314921886,1708654246723,-9496.5,0.00019178,2]
[314921887,1708654246732,-500.0,0.00019178,2]
[314921888,1708654246741,-501.1915811,0.00019178,2]
[314921889,1708654246750,-1623.06,0.00019178,2]
[314921890,1708654246759,-95.52678133,0.00019178,2]
[314921911,1708655137386,-7673.0581418,0.00018098,2]
[314921912,1708655137408,-620.26621225,0.0001875,2]
[314921913,1708655137430,-624.71959325,0.000189,2]
[314921915,1708655288702,600.0,0.0002,6]
[314921916,1708655340886,416.47972883,0.000189,2]
[314921941,1708655432403,-691.53793725,0.00019167,2]
[314921943,1708655432412,-322.56937055,0.00019168,3]
[314922011,1708655438456,-180.20499406,0.00019078,2]
[314922012,1708655438466,-202.77062945,0.00019168,3]
[314922013,1708655438475,-262.67,0.00019168,3]
[314922014,1708655438484,-788.01,0.00019168,3]
[314922015,1708655438494,-300.0,0.00019176,2]
[314922016,1708655438503,-590.2206696,0.00019177,2]
[314922017,1708655438512,-18059.23781778,0.00019177,2]
[314922029,1708655441456,-2954.81486946,0.00019177,2]
[314922030,1708655441468,-2027.22830977,0.00019177,2]
[314922037,1708655443318,-306.93791687,0.00019177,2]
[314922038,1708655443374,-15068.52308328,0.00019177,2]
[314922039,1708655446047,368.7270917,0.00018177,2]
[314922041,1708655446290,-479.293978,0.00019176,2]
[314922042,1708655446302,-212.24395925,0.00019176,2]
[314922043,1708655446311,-546.80270789,0.00019177,2]
[314922044,1708655446348,-21087.26680671,0.00019177,2]
[314922048,1708655942032,415.01097247,0.000189,2]
[314922049,1708655975715,220.2790732,0.00018177,2]
[314922050,1708656040668,24900.0,0.00018173,2]
[314922051,1708656351222,1741.3906421,0.00018172,2]
[314922055,1708656543265,368.24586159,0.000189,2]
[314922056,1708656549414,167.43927655,0.00018976,2]
[314922086,1708656634720,-1297.86194636,0.00019076,2]
[314922087,1708656634733,-287.4952127,0.00019077,2]
[314922088,1708656634745,-173.69318665,0.00019078,2]
[314922089,1708656634755,-2979.12448937,0.00019167,2]
[314922090,1708656634767,-53357.35350897,0.00019168,2]
[314922091,1708656634778,-426.0,0.00019168,3]
[314922092,1708656634789,-213.0,0.00019168,3]
[314922093,1708656634800,-639.0,0.00019168,3]
[314922094,1708656634811,-8803.19876017,0.00019169,2]
[314922095,1708656634822,-173.69318665,0.00019169,2]
[314922096,1708656634833,-531.98520559,0.00019177,2]
[314922097,1708656634844,-500.0,0.00019178,2]
[314922098,1708656634855,-833.24,0.00019178,2]
[314922099,1708656634866,-500.0,0.00019178,2]
[314922100,1708656634876,-615.10796261,0.00019178,2]
[314922101,1708656634887,-500.0,0.00019178,2]
[314922102,1708656634898,-1233.71,0.00019178,2]
[314922103,1708656634909,-500.0,0.00019178,2]
[314922104,1708656634920,-501.74106066,0.00019178,2]
[314922105,1708656634931,-579.84,0.00019178,2]
[314922106,1708656634941,-638.94936936,0.00019178,2]
[314922107,1708656634959,-503.71630699,0.00019178,2]
[314922108,1708656634971,-501.6271939,0.00019178,2]
[314922109,1708656634982,-500.69428777,0.00019178,2]
[314922110,1708656634993,-500.0,0.00019178,2]
[314922111,1708656635005,-580.57614979,0.00019178,2]
[314922112,1708656635016,-501.89354559,0.00019178,2]
[314922113,1708656635026,-501.96515262,0.00019178,2]
[314922114,1708656635038,-501.63878304,0.00019178,2]
[314922115,1708656635049,-500.0,0.00019178,2]
[314922116,1708656635061,-431.59781267,0.00019178,2]
[314922117,1708656635073,-501.19388928,0.00019178,2]
[314922118,1708656635085,-500.0,0.00019178,2]
[314922119,1708656635115,-501.45920367,0.00019178,2]
[314922120,1708656635130,-525.91810143,0.00019178,2]
[314922121,1708656635152,-394.41643947,0.00019178,2]
[314922143,1708656638443,-330.8354591,0.00019178,2]
[314922145,1708656638453,-394.7430316,0.00019178,2]
[314922147,1708656638462,-500.0,0.00019178,2]
[314922149,1708656638471,-500.0,0.00019178,2]
[314922151,1708656638481,-570.16,0.00019178,2]
[314922153,1708656638490,-538.11,0.00019178,2]
[314922155,1708656638499,-1160.99,0.00019178,2]
[314922157,1708656638508,-500.0,0.00019178,2]
[314922159,1708656638517,-500.0,0.00019178,2]
[314922161,1708656638526,-500.57864682,0.00019178,2]
[314922163,1708656638536,-500.65148631,0.00019178,2]
[314922164,1708656638547,-500.0,0.00019178,2]
[314922165,1708656638557,-182.05995529,0.00019178,2]
[314922166,1708656638569,-317.94004471,0.00019178,2]
[314922168,1708656638579,-500.0,0.00019178,2]
[314922170,1708656638588,-151.0,0.00019178,2]
[314922172,1708656638599,-501.38792821,0.00019178,2]
[314922174,1708656638609,-151.0,0.00019178,2]
[314922176,1708656638618,-500.27752377,0.00019178,2]
[314922178,1708656638628,-500.0,0.00019178,2]
[314922180,1708656638637,-498.58057344,0.00019178,2]
[314922182,1708656638646,-500.0,0.00019178,2]
[314922183,1708656638656,-581.15,0.00019178,2]
[314922184,1708656638665,-1027.16,0.00019178,2]
[314922185,1708656638675,-500.0,0.00019178,2]
[314922186,1708656638684,-1279.81,0.00019178,2]
[314922187,1708656638693,-500.0,0.00019178,2]
[314922188,1708656638703,-390.16679798,0.00019178,2]
[314922189,1708656638713,-2551.72,0.00019178,2]
[314922190,1708656638723,-500.6490072,0.00019178,2]
[314922191,1708656638732,-5298.96,0.00019178,2]
[314922192,1708656638742,-500.0,0.00019178,2]
[314922193,1708656638751,-1274.2,0.00019178,2]
[314922194,1708656638760,-1069.58,0.00019178,2]
[314922195,1708656638769,-501.30684629,0.00019178,2]
[314922196,1708656638779,-500.0,0.00019178,2]
[314922197,1708656638788,-500.0,0.00019178,2]
[314922198,1708656638797,-925.05,0.00019178,2]
[314922199,1708656638806,-1476.38,0.00019178,2]
[314922200,1708656638816,-500.0,0.00019178,2]
[314922201,1708656638825,-6142.24,0.00019178,2]
[314922202,1708656638834,-500.0,0.00019178,2]
[314922203,1708656638845,-500.0,0.00019178,2]
[314922204,1708656638854,-794.73,0.00019178,2]
[314922205,1708656638864,-500.0,0.00019178,2]
[314922206,1708656638873,-558.08,0.00019178,2]
[314922207,1708656638882,-1519.36,0.00019178,2]
[314922208,1708656638891,-9100.81,0.00019178,2]
[314922209,1708656638900,-500.0,0.00019178,2]
[314922210,1708656638910,-1421.38,0.00019178,2]
[314922211,1708656638919,-590.21,0.00019178,2]
[314922212,1708656638928,-500.70010666,0.00019178,2]
[314922213,1708656638937,-500.0,0.00019178,2]
[314922214,1708656638946,-500.0,0.00019178,2]
[314922215,1708656638955,-500.46261606,0.00019178,2]
[314922216,1708656638964,-1890.81,0.00019178,2]
[314922217,1708656638973,-500.0,0.00019178,2]
[314922218,1708656638982,-500.98965267,0.00019178,2]
[314922219,1708656638991,-500.0,0.00019178,2]
[314922220,1708656639000,-500.0,0.00019178,2]
[314922221,1708656639010,-648.11,0.00019178,2]
[314922222,1708656639019,-798.24,0.00019178,2]
[314922223,1708656639031,-500.50211,0.00019178,2]
[314922224,1708656639041,-501.04419914,0.00019178,2]
[314922225,1708656639052,-1555.43,0.00019178,2]
[314922226,1708656639065,-265.34480434,0.00019178,2]
[314922227,1708656639082,-235.80830912,0.00019178,2]
[314922228,1708656639096,-500.0,0.00019178,2]
[314922229,1708656639105,-500.0,0.00019178,2]
[314922230,1708656639114,-500.0,0.00019178,2]
[314922231,1708656639123,-501.29578669,0.00019178,2]
[314922232,1708656639134,-500.0,0.00019178,2]
[314922233,1708656639147,-1137.27,0.00019178,2]
[314922234,1708656639157,-438.33951582,0.00019178,2]
[314922235,1708656639169,-63.48593775,0.00019178,2]
[314922236,1708656639179,-1113.88,0.00019178,2]
[314922237,1708656639188,-246.98563944,0.00019178,2]
[314922300,1708656648162,-253.01436056,0.00019178,2]
[314922302,1708656648171,-339.49103942,0.00019178,2]
[314922312,1708656783612,1425.0,0.00016,2]
[314922313,1708656860954,155.37722923,0.000176,2]
[314922314,1708657017061,16872.1130006,0.00018293,2]
[314922316,1708657105702,155.42698358,0.00018293,2]
[314922318,1708657111035,2482.60374114,0.00018293,2]
[314922321,1708657130286,2482.60374114,0.00018293,2]
[314922324,1708657144792,458.12985775,0.000189,2]
[314922325,1708657146292,1293.43654914,0.00018293,2]
[314922328,1708657168303,1293.43654914,0.00018293,2]
[314922329,1708657182479,1293.43654914,0.00018293,2]
[314922331,1708657202317,1293.43654914,0.00018293,2]
[314922333,1708657212439,620.20907863,0.00018704,2]
[314922335,1708657243580,1293.43654914,0.00018704,2]
[314922336,1708657277591,1293.43654914,0.00018704,2]
[314922337,1708657295591,1293.43654914,0.00018704,2]
[314922338,1708657317605,1293.43654914,0.00018704,2]
[314922339,1708657337602,1293.43654914,0.00018704,2]
[314922340,1708657363869,772.59902424,0.00018704,2]
[314922341,1708657366348,531.98520559,0.00019,2]
[314922342,1708657390339,531.98520559,0.00019,2]
[314922343,1708657410342,531.98520559,0.00019,2]
[314922344,1708657430342,531.98520559,0.00019,2]
[314922345,1708657448345,531.98520559,0.00019,2]
[314922346,1708657464348,531.98520559,0.00019,2]
[314922347,1708657469266,300.0,0.000202,8]
[314922348,1708657480346,531.98520559,0.00019,2]
[314922349,1708657502347,531.98520559,0.00019,2]
[314922350,1708657520351,531.98520559,0.00019,2]
[314922351,1708657538358,531.98520559,0.00019,2]
[314922352,1708657556357,232.65956119,0.00019,2]
[314922353,1708657699719,10000.0,0.00019,10]
[314922354,1708657707735,10000.0,0.00019,10]
[314922355,1708657714513,10000.0,0.00019,10]
[314922356,1708657722240,8450.68253749,0.00019,10]
[314922357,1708657722273,1549.31746251,0.00019,10]
[314922358,1708657746265,548.23144744,0.000189,2]
[314922359,1708657753145,10000.0,0.00019,10]
[314922360,1708657771533,5458.15,0.00019,10]
[314922433,1708657839915,-212.14914343,0.00019078,2]
[314922435,1708657839926,-212.14914339,0.00019147,2]
[314922437,1708657839940,-53357.35350897,0.00019177,2]
[314922439,1708657839950,-500.0,0.00019178,2]
[314922441,1708657839961,-500.0,0.00019178,2]
[314922443,1708657839971,-515.69,0.00019178,2]
[314922445,1708657839980,-500.0,0.00019178,2]
[314922447,1708657839991,-500.53523058,0.00019178,2]
[314922449,1708657840000,-500.0,0.00019178,2]
[314922451,1708657840009,-1182.3,0.00019178,2]
[314922453,1708657840019,-592.856663,0.00019178,2]
[314922455,1708657840029,-409.87444097,0.00019178,2]
[314922457,1708657840040,-500.0,0.00019178,2]
[314922459,1708657840053,-502.47770452,0.00019178,2]
[314922461,1708657840063,-500.0,0.00019178,2]
[314922463,1708657840073,-500.0,0.00019178,2]
[314922465,1708657840083,-500.81405947,0.00019178,2]
[314922467,1708657840092,-500.0,0.00019178,2]
[314922469,1708657840101,-612.59126247,0.00019178,2]
[314922471,1708657840110,-399.76696753,0.00019178,2]
[314922473,1708657840119,-500.0,0.00019178,2]
[314922475,1708657840128,-500.83178014,0.00019178,2]
[314922477,1708657840137,-608.83,0.00019178,2]
[314922479,1708657840147,-500.0,0.00019178,2]
[314922481,1708657840156,-500.0,0.00019178,2]
[314922483,1708657840165,-748.96,0.00019178,2]
[314922485,1708657840175,-500.0,0.00019178,2]
[314922487,1708657840184,-500.0,0.00019178,2]
[314922489,1708657840194,-169.07876287,0.00019178,2]
[314922491,1708657840204,-574.22,0.00019178,2]
[314922494,1708657840213,-348.36,0.00019178,2]
[314922496,1708657840223,-500.0,0.00019178,2]
[314922498,1708657840232,-1199.04,0.00019178,2]
[314922500,1708657840241,-546.4,0.00019178,2]
[314922502,1708657840250,-1112.61,0.00019178,2]
[314922504,1708657840260,-500.0,0.00019178,2]
[314922506,1708657840268,-500.0,0.00019178,2]
[314922508,1708657840277,-6227.2,0.00019178,2]
[314922510,1708657840286,-175.12754815,0.00019178,2]
[314922512,1708657840297,-1226.48,0.00019178,2]
[314922514,1708657840306,-500.0,0.00019178,2]
[314922516,1708657840316,-2445.39,0.00019178,2]
[314922518,1708657840325,-3639.16,0.00019178,2]
[314922520,1708657840334,-798.52,0.00019178,2]
[314922522,1708657840344,-5078.17,0.00019178,2]
[314922524,1708657840353,-984.37,0.00019178,2]
[314922526,1708657840363,-811.47,0.00019178,2]
[314922528,1708657840372,-5917.36,0.00019178,2]
[314922530,1708657840381,-1221.11,0.00019178,2]
[314922532,1708657840390,-1456.06,0.00019178,2]
[314922534,1708657840398,-500.0,0.00019178,2]
[314922536,1708657840408,-1063.32,0.00019178,2]
[314922538,1708657840417,-1414.87,0.00019178,2]
[314922540,1708657840427,-320.57,0.00019178,2]
[314922542,1708657840439,-761.62,0.00019178,2]
[314922545,1708657840448,-334.1222498,0.00019178,2]
[314922547,1708657840457,-500.0,0.00019178,2]
[314922549,1708657840467,-10173.84,0.00019178,2]
[314922551,1708657840476,-461.11292181,0.00019178,2]
[314922611,1708657845634,-213.0,0.00019168,3]
[314922612,1708657845644,-38.88707819,0.00019178,2]
[314922613,1708657845653,-1362.16,0.00019178,2]
[314922614,1708657845662,-764.98,0.00019178,2]
[314922615,1708657845672,-502.00220779,0.00019178,2]
[314922616,1708657845682,-1812.03,0.00019178,2]
[314922617,1708657845692,-621.11,0.00019178,2]
[314922618,1708657845701,-500.79995555,0.00019178,2]
[314922619,1708657845711,-500.0,0.00019178,2]
[314922620,1708657845721,-1490.62,0.00019178,2]
[314922621,1708657845731,-500.0,0.00019178,2]
[314922622,1708657845741,-405.04603647,0.00019178,2]
[314922623,1708657845753,-94.95396353,0.00019178,2]
[314922624,1708657845762,-1089.89,0.00019178,2]
[314922625,1708657845772,-500.0,0.00019178,2]
[314922626,1708657845781,-501.11579154,0.00019178,2]
[314922627,1708657845790,-500.0,0.00019178,2]
[314922628,1708657845799,-161.73732483,0.00019178,2]
[314922629,1708657845812,-500.0,0.00019178,2]
[314922630,1708657845821,-500.0,0.00019178,2]
[314922631,1708657845831,-1129.76,0.00019178,2]
[314922632,1708657845840,-500.0,0.00019178,2]
[314922633,1708657845849,-1067.47,0.00019178,2]
[314922634,1708657845859,-5967.73,0.00019178,2]
[314922635,1708657845868,-943.35,0.00019178,2]
[314922636,1708657845877,-170.663657,0.00019178,2]
[314922637,1708657845886,-166.666666,0.00019178,2]
[314922638,1708657845896,-212.14914339,0.00019215,2]
[314922639,1708657845904,-212.14914339,0.00019284,2]
[314922640,1708657845914,-212.14914339,0.00019352,2]
[314922641,1708657845923,-151.0,0.00019352,2]
[314922642,1708657845932,-28978.45480052,0.00019352,2]
[314922643,1708657845941,-300.0,0.00019355,2]
[314922644,1708657845950,-24723.04,0.00019442,3]
[314922645,1708657845959,-155.56991007,0.00019449,2]
[314922646,1708657845968,-155.20331634,0.0001945,2]
[314922647,1708657845978,-500.0,0.00019452,2]
[314922648,1708657845987,-600.6800655,0.00019452,2]
[314922649,1708657845996,-515.69,0.00019452,2]
[314922651,1708657846005,-500.0,0.00019452,2]
[314922653,1708657846014,-500.0,0.00019452,2]
[314922655,1708657846023,-1182.3,0.00019452,2]
[314922656,1708657846032,-607.21,0.00019452,2]
[314922658,1708657846041,-500.0,0.00019452,2]
[314922660,1708657846050,-500.81725587,0.00019452,2]
[314922662,1708657846062,-500.0,0.00019452,2]
[314922664,1708657846071,-500.0,0.00019452,2]
[314922666,1708657846080,-500.0,0.00019452,2]
[314922667,1708657846089,-748.96,0.00019452,2]
[314922669,1708657846098,-500.0,0.00019452,2]
[314922671,1708657846107,-574.22,0.00019452,2]
[314922673,1708657846116,-1199.04,0.00019452,2]
[314922675,1708657846124,-546.4,0.00019452,2]
[314922678,1708657846134,-1112.61,0.00019452,2]
[314922680,1708657846143,-500.0,0.00019452,2]
[314922682,1708657846151,-500.0,0.00019452,2]
[314922684,1708657846160,-1226.48,0.00019452,2]
[314922686,1708657846169,-500.0,0.00019452,2]
[314922688,1708657846178,-2445.39,0.00019452,2]
[314922690,1708657846187,-3639.16,0.00019452,2]
[314922692,1708657846196,-798.52,0.00019452,2]
[314922694,1708657846205,-5078.17,0.00019452,2]
[314922696,1708657846215,-811.47,0.00019452,2]
[314922698,1708657846224,-5917.36,0.00019452,2]
[314922700,1708657846232,-1221.11,0.00019452,2]
[314922702,1708657846241,-1456.06,0.00019452,2]
[314922704,1708657846250,-500.0,0.00019452,2]
[314922706,1708657846259,-1063.32,0.00019452,2]
[314922708,1708657846269,-1414.87,0.00019452,2]
[314922710,1708657846278,-761.62,0.00019452,2]
[314922712,1708657846288,-500.0,0.00019452,2]
[314922714,1708657846297,-10173.84,0.00019452,2]
[314922716,1708657846311,-500.0,0.00019452,2]
[314922718,1708657846320,-1362.16,0.00019452,2]
[314922720,1708657846329,-764.98,0.00019452,2]
[314922722,1708657846338,-1812.03,0.00019452,2]
[314922724,1708657846347,-621.11,0.00019452,2]
[314922726,1708657846357,-500.0,0.00019452,2]
[314922728,1708657846365,-1490.62,0.00019452,2]
[314922730,1708657846374,-500.0,0.00019452,2]
[314922732,1708657846383,-1089.89,0.00019452,2]
[314922734,1708657846392,-500.0,0.00019452,2]
[314922736,1708657846401,-500.0,0.00019452,2]
[314922738,1708657846409,-500.0,0.00019452,2]
[314922740,1708657846419,-1129.76,0.00019452,2]
[314922742,1708657846428,-500.0,0.00019452,2]
[314922744,1708657846438,-1067.47,0.00019452,2]
[314922746,1708657846450,-5967.73,0.00019452,2]
[314922748,1708657846459,-943.35,0.00019452,2]
[314922750,1708657846468,-151.0,0.00019452,2]
[314922752,1708657846477,-151.0,0.00019452,2]
[314922753,1708657846487,-170.93122,0.00019452,2]
[314922755,1708657846496,-300.0,0.00019533,2]
[314922757,1708657846505,-166.666666,0.00019627,2]
[314922758,1708657846515,-620.01045393,0.00019639,2]
[314922759,1708657846526,-300.0,0.00019711,2]
[314922760,1708657846535,-500.0,0.00019726,2]
[314922761,1708657846544,-515.69,0.00019726,2]
[314922762,1708657846556,-500.0,0.00019726,2]
[314922763,1708657846565,-500.0,0.00019726,2]
[314922764,1708657846574,-1182.3,0.00019726,2]
[314922765,1708657846583,-500.0,0.00019726,2]
[314922766,1708657846593,-527.74613827,0.00019726,2]
[314922767,1708657846602,-748.96,0.00019726,2]
[314922768,1708657846611,-500.0,0.00019726,2]
[314922769,1708657846620,-574.22,0.00019726,2]
[314922770,1708657846629,-1199.04,0.00019726,2]
[314922771,1708657846638,-546.4,0.00019726,2]
[314922772,1708657846647,-1112.61,0.00019726,2]
[314922773,1708657846657,-500.0,0.00019726,2]
[314922774,1708657846665,-591.82937538,0.00019726,2]
[314922775,1708657846674,-1226.48,0.00019726,2]
[314922776,1708657846684,-500.0,0.00019726,2]
[314922777,1708657846694,-2445.39,0.00019726,2]
[314922778,1708657846703,-3639.16,0.00019726,2]
[314922780,1708657846713,-798.52,0.00019726,2]
[314922781,1708657846722,-5078.17,0.00019726,2]
[314922782,1708657846731,-811.47,0.00019726,2]
[314922783,1708657846739,-5917.36,0.00019726,2]
[314922785,1708657846749,-1221.11,0.00019726,2]
[314922787,1708657846758,-1456.06,0.00019726,2]
[314922789,1708657846766,-500.0,0.00019726,2]
[314922791,1708657846775,-1063.32,0.00019726,2]
[314922793,1708657846784,-1414.87,0.00019726,2]
[314922795,1708657846793,-761.62,0.00019726,2]
[314922797,1708657846803,-486.50213551,0.00019726,2]
[314922799,1708657846813,-10173.84,0.00019726,2]
[314922801,1708657846823,-500.0,0.00019726,2]
[314922804,1708657846833,-1362.16,0.00019726,2]
[314922805,1708657846842,-764.98,0.00019726,2]
[314922807,1708657846851,-1812.03,0.00019726,2]
[314922809,1708657846860,-621.11,0.00019726,2]
[314922811,1708657846870,-500.0,0.00019726,2]
[314922813,1708657846879,-1490.62,0.00019726,2]
[314922815,1708657846887,-500.0,0.00019726,2]
[314922816,1708657846896,-1089.89,0.00019726,2]
[314922818,1708657846905,-500.0,0.00019726,2]
[314922820,1708657846915,-500.0,0.00019726,2]
[314922822,1708657846924,-500.0,0.00019726,2]
[314922824,1708657846933,-1129.76,0.00019726,2]
[314922826,1708657846943,-500.0,0.00019726,2]
[314922828,1708657846951,-1067.47,0.00019726,2]
[314922830,1708657846961,-5967.73,0.00019726,2]
[314922832,1708657846970,-943.35,0.00019726,2]
[314922834,1708657846979,-300.0,0.00019889,2]
[314922836,1708657846988,-17748.83541634,0.000199,2]
[314922838,1708657846998,-2899.53402221,0.000199,2]
[314922840,1708657847007,-18949.65899699,0.0001996,2]
[314922842,1708657847016,-1066530.08837722,0.0002,2]
[314922844,1708657847030,-119764.43731512,0.0002,2]
[314922846,1708657847041,-1186.24723787,0.0002,2]
[314922850,1708657847069,-5871.6329419,0.0002,2]
[314922898,1708657847537,-14390.59564554,0.0002,2]
[314922902,1708657847558,-35061.54791549,0.0002,2]
[314922904,1708657847569,-588.4,0.0002,2]
[314922906,1708657847580,-364.0,0.0002,2]
[314922952,1708657848675,227.066744,0.00018357,2]
[314922954,1708658027492,19091.58199916,0.00018253,2]
[314922955,1708658092871,812.421878,0.00017921,2]
[314922957,1708658549066,178.14021054,0.0001797,2]
[314922958,1708659002836,24900.0,0.00017905,2]
[314923016,1708659033777,-155.00775039,0.00018068,2]
[314923017,1708659033788,-1191.228558,0.00018069,2]
[314923018,1708659033833,-26607.95262017,0.00018069,2]
[314923019,1708659033842,-261.73831888,0.00018152,2]
[314923020,1708659033851,-825.54066736,0.000189,2]
[314923021,1708659033860,-1702.26485527,0.00019126,2]
[314923022,1708659033870,-197.69,0.00019168,3]
[314923023,1708659033879,-243.39,0.00019168,3]
[314923024,1708659033888,-730.22,0.00019168,3]
[314923025,1708659033897,-500.0,0.00019178,2]
[314923026,1708659033906,-501.00040851,0.00019178,2]
[314923027,1708659033915,-500.0,0.00019178,2]
[314923028,1708659033924,-213.15646545,0.00019178,2]
[314923029,1708659033933,-507.02,0.00019178,2]
[314923030,1708659033942,-502.44,0.00019178,2]
[314923031,1708659033952,-1034.52,0.00019178,2]
[314923032,1708659033960,-698.7,0.00019178,2]
[314923033,1708659033969,-500.0,0.00019178,2]
[314923034,1708659033978,-655.34,0.00019178,2]
[314923035,1708659033987,-500.0,0.00019178,2]
[314923036,1708659033996,-500.0,0.00019178,2]
[314923037,1708659034005,-1049.16,0.00019178,2]
[314923038,1708659034014,-500.0,0.00019178,2]
[314923039,1708659034022,-500.0,0.00019178,2]
[314923040,1708659034031,-294.95915994,0.00019178,2]
[314923041,1708659034040,-973.53,0.00019178,2]
[314923042,1708659034049,-5221.76,0.00019178,2]
[314923043,1708659034058,-500.0,0.00019178,2]
[314923044,1708659034067,-988.54,0.00019178,2]
[314923045,1708659034076,-2139.72,0.00019178,2]
[314923046,1708659034085,-825.43,0.00019178,2]
[314923047,1708659034095,-4443.39,0.00019178,2]
[314923048,1708659034104,-1068.47,0.00019178,2]
[314923049,1708659034112,-1073.17,0.00019178,2]
[314923050,1708659034122,-500.0,0.00019178,2]
[314923051,1708659034132,-923.58,0.00019178,2]
[314923052,1708659034142,-666.42,0.00019178,2]
[314923054,1708659034152,-500.0,0.00019178,2]
[314923055,1708659034161,-6924.9,0.00019178,2]
[314923056,1708659034170,-930.41,0.00019178,2]
[314923057,1708659034179,-22.32341698,0.00019178,2]
[314923058,1708659034191,-1215.68658302,0.00019178,2]
[314923059,1708659034201,-1191.89,0.00019178,2]
[314923060,1708659034211,-1585.52,0.00019178,2]
[314923061,1708659034221,-10040.92,0.00019178,2]
[314923062,1708659034229,-1274.05,0.00019178,2]
[314923063,1708659034239,-500.0,0.00019178,2]
[314923064,1708659034249,-669.36,0.00019178,2]
[314923065,1708659034257,-239.88990771,0.00019178,2]
[314923071,1708659038918,-303.58009229,0.00019178,2]
[314923072,1708659038928,-1304.29,0.00019178,2]
[314923073,1708659038937,-500.0,0.00019178,2]
[314923074,1708659038947,-500.0,0.00019178,2]
[314923075,1708659038956,-164.92990771,0.00019178,2]
[314923076,1708659038975,-335.07009229,0.00019178,2]
[314923077,1708659038984,-953.65,0.00019178,2]
[314923078,1708659038993,-500.0,0.00019178,2]
[314923079,1708659039006,-500.0,0.00019178,2]
[314923080,1708659039017,-934.03,0.00019178,2]
[314923081,1708659039029,-500.0,0.00019178,2]
[314923082,1708659039042,-500.0,0.00019178,2]
[314923083,1708659039053,-3184.26,0.00019178,2]
[314923084,1708659039065,-5004.19,0.00019178,2]
[314923085,1708659039078,-166.666666,0.00019178,2]
[314923086,1708659039088,-306.0,0.00019315,2]
[314923087,1708659039098,-5762.79937972,0.00019352,2]
[314923088,1708659039109,-201.7590252,0.000194,2]
[314923089,1708659039121,-153.4163504,0.000194,2]
[314923090,1708659039132,-176.5578552,0.000194,2]